Cogmind - Beta 14 @@@ ROGUE MODE // 2024.08.10 @ 21:42:01 Player: CONM Result: Destroyed by C-17 Slicer with Concussive RPG Performance ------------- Evolutions (2) 1000 Regions Visited (5) 1000 Robots Destroyed (10) 50 Value Destroyed (301) 301 Prototype IDs (25) 500 Alien Tech Used (0) 0 Bonus (341) 341 TOTAL SCORE: 3192 Bonus ------- Follower Combat Kills 341 Cogmind --------- Core Integrity 0/550 Matter 163/300 Energy 20/100 System Corruption 6% Temperature Cool (0) Movement Core (50) Location -8/Materials Parts ------- > --- POWER (1) -------- (None) > --- PROPULSION (4) --- (None) > --- UTILITY (3) ------ (None) > --- WEAPON (3) ------- Heavy Hammer > --- INVENTORY (5) ---- Small Storage Unit Large Storage Unit Improved Targeting Computer Tractor Beam Heavy Hammer Peak State ------------ > --- POWER ------------ Makeshift Power Source > --- PROPULSION ------- Aluminum Leg Aluminum Leg > --- UTILITY ---------- Medium Storage Unit Large Storage Unit Improved Targeting Computer > --- WEAPON ----------- Autogun Autogun Autogun > --- INVENTORY -------- Light Nuclear Core Wheel Small Storage Unit Weight Redist. System Improved Targeting Computer Tractor Beam Autogun Heavy Hammer Heavy Hammer [Rating: 17] Favorites ----------- Power Light Nuclear Core Engine Ion Engine Power Core Light Nuclear Core Propulsion Aluminum Leg Leg Aluminum Leg Wheel Wheel Hover Unit Improved Hover Unit Utility Medium Storage Unit Device Tractor Beam Storage Medium Storage Unit Processor Improved Targeting Computer Weapon Autogun Ballistic Gun Autogun Impact Weapon Heavy Hammer Build | -11 -10 -10 -10 -9 -8 ------- Run | Yrd Mat Min Exi Min Mat Slots Evolved 4 | . . . . . 4 Power . | . . . . . . Propulsion 2 | . . . . . 2 Utility 1 | . . . . . 1 Weapon 1 | . . . . . 1 Parts Attached 29 | 7 2 6 1 . 13 Power 4 | 1 . 1 1 . 1 Engine 2 | 1 . . 1 . . Core 2 | . . 1 . . 1 Reactor . | . . . . . . Propulsion 9 | 2 . 1 . . 6 Treads . | . . . . . . Leg 4 | 2 . 1 . . 1 Wheel 1 | . . . . . 1 Hover 4 | . . . . . 4 Flight . | . . . . . . Utility 9 | 2 . 4 . . 3 Device 5 | 1 . 2 . . 2 Storage 3 | 1 . 1 . . 1 Processor 1 | . . 1 . . . Hackware . | . . . . . . Protection . | . . . . . . Artifact . | . . . . . . Weapon 7 | 2 2 . . . 3 Energy Gun . | . . . . . . Energy Cannon . | . . . . . . Ballistic Gun 6 | 2 2 . . . 2 Ballistic Cannon . | . . . . . . Launcher . | . . . . . . Special Weapon . | . . . . . . Impact Weapon 1 | . . . . . 1 Slashing Weapon . | . . . . . . Piercing Weapon . | . . . . . . Special Melee Weapon . | . . . . . . Unidentified Prototypes 2 | . . 1 . . 1 Parts Lost 15 | . . . . . 15 Power 2 | . . . . . 2 Propulsion 6 | . . . . . 6 Utility 3 | . . . . . 3 Weapon 4 | . . . . . 4 Highest Loss Streak 12 | . . . . . 12 To Critical Strikes . | . . . . . . Average Slot Usage (%) 96 | . 100 100 100 100 63 Engine 5 | . 14 5 4 14 5 Core 7 | . . 8 9 . . Leg 26 | . 28 28 28 28 12 Device 5 | . 14 8 . . 1 Storage 13 | . 14 14 14 14 9 Processor 8 | . . 5 14 14 9 Ballistic Gun 26 | . 28 28 28 28 16 Peak Build Rating 17 | 7 10 16 14 14 17 Average Rating 11 | 5 8 11 13 14 14 On Entrance 9 | . 7 10 13 14 14 Naked Turns . | . . . . . . Heaviest Build 43 | 14 17 22 21 20 43 Greatest Support 30 | 20 20 20 20 20 30 Greatest Overweight (x) 10 | . . 1 1 . 10 Average Overweight (x) . | . . . . . . Largest Inventory Capacity 15 | 8 8 10 10 10 15 Average Capacity 9 | 5 8 9 10 10 12 Most Carried 10 | 2 8 10 10 10 10 Average Carried 8 | 1 5 9 10 9 7 Final Capacity 10 | 8 8 10 10 10 5 Final Carried 10 | 2 8 10 10 10 5 Class Distribution -------------------- 73% | Mutant 21% | Commander-Mutant 3% | Commander-Gunner Dominant Class ---------------- Mutant | -10/Materials Mutant | -10/Mines Commander-Mutant | -10/Exiles Commander-Mutant | -9/Mines Mutant | -8/Materials Resources | -11 -10 -10 -10 -9 -8 ----------- Run | Yrd Mat Min Exi Min Mat Matter Collected 585 | 294 . 256 . 10 25 Remotely 192 | 10 . 182 . . . Salvage Created 410 | 124 . 172 . . 114 Parts 17 | 7 . 6 . . 4 Haulers Intercepted . | . . . . . . Recyclers Shooed . | . . . . . . Parts Field Recycled . | . . . . . . Retrieved Matter . | . . . . . . Parts Self-Destructed . | . . . . . . Prevented . | . . . . . . Kills | -11 -10 -10 -10 -9 -8 ------- Run | Yrd Mat Min Exi Min Mat Combat Hostiles Destroyed 8 | . . 6 . . 2 Guns 8 | . . 6 . . 2 Classes Destroyed 4 | 2 . 2 . . . Tunneler 1 | 1 . . . . . Recycler 1 | 1 . . . . . Swarmer 4 | . . 4 . . . Grunt 4 | . . 2 . . 2 Best Kill Streak 3 | 2 . 3 . . 2 Combat Bots Only 3 | . . 3 . . 2 Max Kills in Single Turn 1 | 1 . 1 . . 1 Gunslinging . | . . . . . . Exploded . | . . . . . . Melee . | . . . . . . Uniques/NPCs Destroyed . | . . . . . . Combat | -11 -10 -10 -10 -9 -8 -------- Run | Yrd Mat Min Exi Min Mat Hostile Shots Fired 154 | . . 32 . . 122 Missed 38 | . . 7 . . 31 Damage Taken 1903 | . . 269 . . 1634 Core 638 | . . 88 . . 550 Absorbed by Shields . | . . . . . . Core Remaining (%) 82 | 100 . . . 64 . Volleys Fired 39 | 6 . 22 . . 11 Largest 3 | 2 . 2 . . 3 Hottest 69 | 40 . 46 . . 69 Shots Fired 81 | 12 . 44 . . 25 Gun 81 | 12 . 44 . . 25 Cannon . | . . . . . . Launcher . | . . . . . . Special . | . . . . . . Kinetic 81 | 12 . 44 . . 25 Thermal . | . . . . . . Explosive . | . . . . . . Electromagnetic . | . . . . . . Robot Hit Streak 11 | 3 . 11 . . 6 Robot Miss Streak 9 | 3 . 9 . . 4 Penetration Max . | . . . . . . Secondary Targets 1 | . . 1 . . . Max Gunslinging Chain 1 | . . 1 . . . Shots Hit Robots 42 | 7 . 22 . . 13 Core Hits 18 | 4 . 8 . . 6 Critical Kills . | . . . . . . Critical Parts Destroyed . | . . . . . . Critical Strikes . | . . . . . . Melee Attacks 5 | . . . . . 5 Impact 5 | . . . . . 5 Slashing . | . . . . . . Piercing . | . . . . . . Sneak Attacks . | . . . . . . Combat Hostiles . | . . . . . . Follow-up Attacks . | . . . . . . Damage Inflicted 596 | 58 . 329 . . 209 Guns 596 | 58 . 329 . . 209 Cannons . | . . . . . . Explosions . | . . . . . . Melee . | . . . . . . Ramming . | . . . . . . Kinetic 596 | 58 . 329 . . 209 Thermal . | . . . . . . Explosive . | . . . . . . Electromagnetic . | . . . . . . Impact . | . . . . . . Slashing . | . . . . . . Piercing . | . . . . . . Highest Corruption 6 | . . . . . 6 Average Corruption 4 | . . . . . 4 Corruption Purged . | . . . . . . Corruption Blocked . | . . . . . . Effects 2 | . . . . . 2 Message Errors 1 | . . . . . 1 Matter Fused 1 | . . . . . 1 Overload Shots . | . . . . . . Overflow Damage . | . . . . . . Projectiles . | . . . . . . Explosions . | . . . . . . Melee . | . . . . . . Knockbacks . | . . . . . . Impact . | . . . . . . Kinetic . | . . . . . . Secondary . | . . . . . . Self-Inflicted Damage . | . . . . . . Shots . | . . . . . . Rammed . | . . . . . . Targets Rammed . | . . . . . . Kicked . | . . . . . . Crushed . | . . . . . . Highest Temperature 88 | . . 49 . . 88 Average Temperature 19 | . . 15 . . 26 Received Heat Transfer 648 | . . 99 . . 549 Siege Activations . | . . . . . . Robots Corrupted . | . . . . . . Combat Hostiles . | . . . . . . Parts Fried . | . . . . . . Impact Corruptions . | . . . . . . Robots Melted . | . . . . . . Combat Hostiles . | . . . . . . Parts Melted . | . . . . . . Heat Transferred . | . . . . . . Parts Sabotaged . | . . . . . . Parts Stolen . | . . . . . . Parts Stripped . | . . . . . . Power Chain Reactions . | . . . . . . Alert | -11 -10 -10 -10 -9 -8 ------- Run | Yrd Mat Min Exi Min Mat Peak Influence 341 | 10 6 149 . . 341 Initial 6 | . 6 1 . . . Average 52 | 1 6 38 . . 198 Maximum Alert Level 1 | . . . . . 1 Low Security (%) 92 | 100 100 100 . 100 40 Level 1 7 | . . . . . 59 Level 2 . | . . . . . . Level 3 . | . . . . . . Level 4 . | . . . . . . Level 5 . | . . . . . . High Security . | . . . . . . Max Security . | . . . . . . Squads Dispatched 5 | . . . . . 5 Investigation . | . . . . . . Extermination . | . . . . . . Reinforcement 2 | . . . . . 2 Assault . | . . . . . . Garrison 3 | . . . . . 3 Intercept . | . . . . . . Searches Triggered . | . . . . . . Construction Impeded . | . . . . . . Haulers Reinforced . | . . . . . . Active Scanning Responses . | . . . . . . Cargo Convoy Interrupts . | . . . . . . Stealth | -11 -10 -10 -10 -9 -8 --------- Run | Yrd Mat Min Exi Min Mat Distress Signals 7 | . . . . . 7 Communications Jammed . | . . . . . . Distress Signals . | . . . . . . Times Spotted 38 | . . 9 . . 29 Peak Tracking Total 17 | . . 4 . . 17 Tactical Retreats 2 | . . 2 . . . Traps | -11 -10 -10 -10 -9 -8 ------- Run | Yrd Mat Min Exi Min Mat Traps Triggered . | . . . . . . Indirectly . | . . . . . . Trap Hack Attempts . | . . . . . . Triggered . | . . . . . . Disarmed . | . . . . . . Reprogrammed . | . . . . . . Reused . | . . . . . . Traps Extracted . | . . . . . . Installed . | . . . . . . Triggered . | . . . . . . Machines | -11 -10 -10 -10 -9 -8 ---------- Run | Yrd Mat Min Exi Min Mat Machines Disabled 6 | . . . . . 6 Max in Single Turn . | . . . . . . Machines Repaired . | . . . . . . Machines Dismantled . | . . . . . . Machines Sabotaged . | . . . . . . Overloaded Fab Kills . | . . . . . . Hacking | -11 -10 -10 -10 -9 -8 --------- Run | Yrd Mat Min Exi Min Mat Machines Accessed 6 | . 1 2 2 . 1 Terminals 3 | . 1 1 . . 1 Fabricators . | . . . . . . Repair Stations . | . . . . . . Recycling Units . | . . . . . . Scanalyzers . | . . . . . . Garrison Access . | . . . . . . Total Hacks 13 | . 2 2 7 . 2 Successful 10 | . 1 2 7 . . Failed 3 | . 1 . . . 2 Catastrophic 3 | . 1 . . . 2 Database Lockouts . | . . . . . . Manual 3 | . . . 1 . 2 Terminals 5 | . 2 1 . . 2 Fabricators . | . . . . . . Repair Stations . | . . . . . . Recycling Units . | . . . . . . Scanalyzers . | . . . . . . Garrison Access . | . . . . . . Terminal Hacks 10 | . 1 2 7 . . Record 6 | . . . 6 . . Robot Analysis 1 | . 1 . . . . Open Door 1 | . . 1 . . . Zone Layout 1 | . . 1 . . . Derelict Proto ID Bank 1 | . . . 1 . . Fabricator Hacks . | . . . . . . Repair Station Hacks . | . . . . . . Recycling Unit Hacks . | . . . . . . Scanalyzer . | . . . . . . Garrison Access Hacks . | . . . . . . Unauthorized Hacks . | . . . . . . Terminals . | . . . . . . Fabricators . | . . . . . . Repair Stations . | . . . . . . Recycling Units . | . . . . . . Scanalyzers . | . . . . . . Garrison Access . | . . . . . . Data Cores Recovered . | . . . . . . Used . | . . . . . . Hacking Detections 3 | . 1 1 . . 1 Full Trace Events 1 | . . . . . 1 Feedback Events . | . . . . . . Feedback Blocked . | . . . . . . Robot Schematics Acquired . | . . . . . . Robots Built . | . . . . . . Authchips . | . . . . . . Time . | . . . . . . Total Robot Build Rating . | . . . . . . Part Schematics Acquired . | . . . . . . Parts Built . | . . . . . . Authchips . | . . . . . . Time . | . . . . . . Total Part Build Rating . | . . . . . . Parts Repaired . | . . . . . . Time . | . . . . . . Parts Recycled . | . . . . . . Recycled Matter . | . . . . . . Retrieved Matter . | . . . . . . Retrieved Components . | . . . . . . Parts Scanalyzed . | . . . . . . Part Schematics Acquired . | . . . . . . Parts Damaged . | . . . . . . Bothacking | -11 -10 -10 -10 -9 -8 ------------ Run | Yrd Mat Min Exi Min Mat Used RIF Installer . | . . . . . . Robots Hacked . | . . . . . . Non-combat . | . . . . . . Combat . | . . . . . . Robot Hacks Applied . | . . . . . . Relay Couplers Released . | . . . . . . Fabnet Peak Effective % . | . . . . . . Robots Rewired 5 | . . . 5 . . Allies Hacked . | . . . . . . Hacks Repelled . | . . . . . . Allies | -11 -10 -10 -10 -9 -8 -------- Run | Yrd Mat Min Exi Min Mat Total Allies 8 | . . 3 5 . . Largest Group 5 | . . 3 5 5 5 Highest-Rated Group 66 | . . 40 66 66 66 Highest-Rated Ally 21 | . . 16 21 21 21 Total Orders . | . . . . . . Ally Attacks 62 | . . 21 . . 41 Total Damage 1300 | . . 227 . . 1073 Kills 17 | . . 4 . . 13 Allies Corrupted . | . . . . . . Allies Melted . | . . . . . . Intel | -11 -10 -10 -10 -9 -8 ------- Run | Yrd Mat Min Exi Min Mat Robot Analysis Total 1 | . 1 . . . . Derelict Logs Recovered 1 | . . 1 . . . Drone Launches . | . . . . . . Drone Recoveries . | . . . . . . Exploration | -11 -10 -10 -10 -9 -8 ------------- Run | Yrd Mat Min Exi Min Mat Turns Passed 2633 | 216 88 1291 751 43 244 Spaces Moved 1468 | 120 65 657 448 35 143 Core 12 | 6 . . . . 6 Treads . | . . . . . . Legs 1379 | 114 65 657 448 35 60 Wheels 6 | . . . . . 6 Hover 71 | . . . . . 71 Flight . | . . . . . . Fastest Speed 50 | 50 120 120 120 120 50 Average Speed 161 | 116 120 186 158 120 126 Slowest Speed 550 | 120 120 190 190 120 550 Overloaded Moves . | . . . . . . Propulsion Burnouts . | . . . . . . Robots Hopped . | . . . . . . Cave-ins Triggered . | . . . . . . Exploration Rate (%) 40 | 8 13 88 88 10 33 Regions Visited 5 Branch Regions 3 Pre-discovered Areas 1 | . . . 1 . . Known Exits Taken 1 | . . . 1 . . Unknown Exits Taken 4 | 1 1 1 . 1 . Scrap Searched 3 | . . 2 . 1 . Spaces Dug 4 | . . . . . 4 Terrain Destroyed 4 | . . . . . 4 Melee 4 | . . . . . 4 Projectile . | . . . . . . AOE . | . . . . . . Terrain Rammed . | . . . . . . Walls Destroyed . | . . . . . . Machines Disabled . | . . . . . . Actions | -11 -10 -10 -10 -9 -8 --------- Run | Yrd Mat Min Exi Min Mat Total 1651 | 182 76 690 489 36 178 Wait 48 | 46 . . . . 2 Move 1463 | 119 64 656 447 34 143 Hop . | . . . . . . Pick Up 15 | 3 7 3 . 1 1 Fast Attach 13 | 7 . . . . 6 Attach 7 | . . . . . 7 Detach 1 | . . . . . 1 Swap 9 | . 2 6 1 . . Drop 11 | 1 3 3 1 1 2 Fire 39 | 6 . 22 . . 11 Melee 5 | . . . . . 5 Ram . | . . . . . . Kick . | . . . . . . Crush . | . . . . . . Escape Stasis . | . . . . . . Rewire 40 | . . . 40 . . Trap . | . . . . . . Miscellaneous . | . . . . . . Route ------- -11/Scrapyard -10/Materials -10/Mines (discovered 3 exits: [Mat] / *Exi / [*Sub]) -10/Exiles (discovered 2 exits: *Min x2) -9/Mines -8/Materials History --------- Turn | Location | Event 26 | -11/Scrapyard | Discovered new exit (range 15) 217 | -11/Scrapyard | Entered Materials 289 | -10/Materials | Discovered new exit (range 12) 301 | -10/Materials | Build established: Mutant 305 | -10/Materials | Entered Mines 323 | -10/Mines | Met a Derelict bent on vengeance 498 | -10/Mines | Assisted by bots powering up and referring to "LRC-V3" 624 | -10/Mines | Found the Drone Emporium 631 | -10/Mines | Found Prototype Device 631 | -10/Mines | Identified Thief Drone Bay 778 | -10/Mines | Found a damaged Exp. Sensor Array with a note attached 1077 | -10/Mines | Discovered new exit (range 12) 1356 | -10/Mines | Found a hidden stash of uninstalled traps 1400 | -10/Mines | Discovered new exit (range 6) 1586 | -10/Mines | Deemed a non-threat by the Exiles lab entrance 1588 | -10/Mines | Discovered new exit (range 5) 1596 | -10/Mines | Entered Exiles 1596 | -10/Exiles | Found Exiles lab destroyed 1597 | -10/Exiles | Identified exit to Mines 1832 | -10/Exiles | Learned location of Zion (-6) 1936 | -10/Exiles | Opened EX-Vault 2103 | -10/Exiles | Build established: Commander-Mutant 2347 | -10/Exiles | Entered Mines 2347 | -9/Mines | Accompanied by 5 allies 2351 | -9/Mines | Discovered new exit (range 14) 2390 | -9/Mines | Entered Materials 2390 | -8/Materials | Accompanied by 5 allies 2390 | -8/Materials | Evolved 4 slots: Propulsion x2, Utility x1, Weapon x1 2543 | -8/Materials | Lost 5 allies 2580 | -8/Materials | Core integrity fell below 50% 2629 | -8/Materials | Lost 12 parts (2p5n1u4w) 2632 | -8/Materials | Core integrity fell below 20% 2634 | -8/Materials | Destroyed by C-17 Slicer with Concussive RPG Last Messages --------------- 02602_ U-05 Engineer destroyed. 02611_ ALERT: Suspicious intruders detected, dispatching Cutter reinforcements to area. 02613_ Acquired Reaction Control System. 02620_ W-25 Informer sends out distress signal. 02621_ Connecting with Terminal... 02621_ Current location identified: Materials 02626_ GHXH8,TNJ3HC:=DWL755R 02629_ Penetrated by Slug. 02629_ Imp. Hover Unit destroyed. 02629_ Knocked back. 02629_ O-24 Administrator: "IFF HANDSHAKE FAILED. SECURING TERMINAL." 02630_ Aerolev Unit severed. 02631_ Knocked back. 02632_ Imp. Targeting Computer destroyed. 02632_ System corrupted by crushing effect (+2). 02632_ Knocked back. 02633_ Reaction Control System destroyed. 02633_ Knocked back. 02633_ K-01 Serf collects debris. Map ----- +----------------------------------------------------+ | ?????????????????????????????????????????????????? | | ?????????????????????????????????????????????????? | | ?????????????????????????????????????????????????? | | ?????????????????????????????????????????????????? | | ?????????????????????????????????????????????????? | | ?????????????????????????????????????????????????? | | ?????????????????????????????????????????????????? | | ?????????????????????????????????????????????????? | | ?????????????????????????????????????????????????? | | ?????????????????????????????????????????????????? | | ?????????????????????????????????????????????????? | | ?????????????????????????????????????????????????? | | ?????????????????????????????????????????????????? | | ?????????????????????????????????????????????????? | | ??????????????????#####??????????????????????????? | | ??????????????????# ??????????????????????????? | | ?????????????????## ??????????????????????????? | | ?????????????????#" ?????????????????????????? | | ?????????????????#" ?????????????????????????? | | ?????????????????#" ! k?????????????????????????? | | ?????????????????#T #????????????????????????? | | ?????????????????#"o ! ###+######?#????????????? | | ????????????????##" #????????????? | | ????????????????# " ??????#??????? | | ??????????????????# """"" ?????? #??????? | | ??????????????????# / @""""""""?????? #??????? | | ?????????????????# / """ """ #?? #??????? | | ?????????????????# # ## = #?# ##?????? | | ??????????????????# ######### #?????? | | ??????????????????# cc #?????? | | ??????????????????# Y #?????? | | ??????????????????# ! % c% H #?????? | | ??????????????????# ##########/### #?????? | | ??????????????????###+##??????# ###########?? | | ??????????????????????????????# """ [# #?? | | ??????????????????????????????# """ # #?? | | ??????????????????????????????# """ # #?? | | ??????????????????????????????# # #?? | | ??????????????????????????????# """ # #?? | | ??????????????????????????????# """ # #?? | | ??????????????????????????????# """ # ??? | | ??????????????????????????????# #?? ????? | | ??????????????????????????????#"" #?###+###???? | | ??????????????????????????????#"T #?# #???? | | ??????????????????????????????#"" ### T #???? | | ??????????????????????????????# + "" #???? | | ??????????????????????????????####+##### #???? | | ?????????????????????????????????# #???# #???? | | ?????????????????????????????????# #???## ##???? | | ?????????????????????????????????# #????# #????? | +----------------------------------------------------+ Best States ------------- Heat Dissipation 31 Energy Generation 15 Energy Capacity 250 Matter Stores 300 Matter Capacity 300 Sight Range 16 Terrain Scan Density 10 Additional Mass Support 6 Evasion (%) 63 Targeting Accuracy 6 Item Schematics ----------------- None Robot Schematics ------------------ None Fabricated ------------ Nothing Alien Tech Used ----------------- None Achievements -------------- None Challenges ------------ None Game ------ Seed PointyConcussiveGuard Manual? 0 Play Time 00:18:39 Cumulative 56.6 hours Start 2024.08.10 @ 21:25:01 End 2024.08.10 @ 21:42:01 Sessions 1 Manual Loads 0 Difficulty Rogue Special Mode None Game No. 86 Rogue 86 Adventurer 0 Explorer 0 Win Type - Total 0 Types 0/0/0/0/0/0/0/0/0 Lore% 19 Gallery% 32 Achievement% 37 Wizard Run 0 Options --------- Layout 0 ASCII 0 Keyboard 0 Movement Arrows Keybinds 0 Fullscreen 2 Font 18/SmallcapsGlow Map View 76x50 Zoom Use 0% Tactical HUD 1 Map Filters NONE Filters NONE Steam 1 RUN: 001f0d8b-e843-4e30-9152-0bcf2aaa9c82